Cogmind - Beta 9.6 @@@ ROGUE MODE // 2020.09.02 @ 01:48:18 // Winter2019/RPGLIKE Player: Hermelin Result: Destroyed by G-34 Mercenary with Small Laser Performance ------------- Evolutions (0) 0 Regions Visited (1) 200 Robots Destroyed (19) 95 Value Destroyed (459) 459 Prototype IDs (0) 0 Alien Tech Used (0) 0 Bonus (0) 0 TOTAL SCORE: 754 Bonus ------- None Cogmind --------- Core Integrity 0/600 Matter 300/300 Energy 125/125 System Corruption 0% Temperature Cool (6) Movement Treading (160) Location -10/Materials Parts ------- > --- POWER (1) -------- Light Ion Engine > --- PROPULSION (1) --- Light Treads > --- UTILITY (3) ------ Visual Processing Unit Improved Terrain Scanner Trap Extractor > --- WEAPON (4) ------- Heavy Hammer Heavy Hammer Heavy Hammer Heavy Hammer > --- INVENTORY (1) ---- Light Treads Peak State ------------ > --- POWER ------------ Light Ion Engine > --- PROPULSION ------- Light Treads > --- UTILITY ---------- Visual Processing Unit Improved Terrain Scanner Trap Extractor > --- WEAPON ----------- Heavy Hammer Heavy Hammer Heavy Hammer Heavy Hammer > --- INVENTORY -------- Light Treads [Rating: 16] Favorites ----------- Power Light Ion Engine Engine Light Ion Engine Propulsion Light Treads Treads Light Treads Utility Improved Terrain Scanner Device Improved Terrain Scanner Processor Visual Processing Unit Weapon Heavy Hammer Energy Gun Small Laser Ballistic Gun Light Assault Rifle Impact Weapon Heavy Hammer Build | -11 -10 ------- Run | Scr Mat Slots Evolved 5 | 4 1 Power . | . . Propulsion . | . . Utility 2 | 2 . Weapon 3 | 2 1 Parts Attached 13 | 6 7 Power 1 | 1 . Engine 1 | 1 . Core . | . . Reactor . | . . Propulsion 2 | 1 1 Treads 2 | 1 1 Leg . | . . Wheel . | . . Hover . | . . Flight . | . . Utility 3 | 1 2 Device 2 | 1 1 Storage . | . . Processor 1 | . 1 Hackware . | . . Protection . | . . Artifact . | . . Weapon 7 | 3 4 Energy Gun 2 | 2 . Energy Cannon . | . . Ballistic Gun 1 | 1 . Ballistic Cannon . | . . Launcher . | . . Special Weapon . | . . Impact Weapon 4 | . 4 Slashing Weapon . | . . Piercing Weapon . | . . Special Melee Weapon . | . . Unidentified Prototypes . | . . Parts Lost . | . . Power . | . . Propulsion . | . . Utility . | . . Weapon . | . . Highest Loss Streak . | . . Average Slot Usage (%) 96 | . 96 Engine 11 | . 11 Treads 11 | . 11 Device 22 | . 22 Processor 10 | . 10 Energy Gun 1 | . 1 Impact Weapon 36 | . 36 Naked Turns . | . . Heaviest Build 18 | 8 18 Greatest Support 25 | 20 25 Greatest Overweight (x) . | . . Average Overweight (x) . | . . Largest Inventory Capacity 1 | 1 1 Average Capacity 1 | 1 1 Most Carried 1 | 1 1 Average Carried . | . 1 Final Capacity 1 | 1 1 Final Carried 1 | 1 1 Class Distribution -------------------- 82% | Assassin 17% | Skirmisher Dominant Class ---------------- Assassin | -10/Materials Resources | -11 -10 ----------- Run | Scr Mat Matter Collected 335 | 265 70 Remotely . | . . Salvage Created 875 | 89 786 Parts 27 | 4 23 Haulers Intercepted 1 | . 1 Recyclers Shooed . | . . Parts Field Recycled . | . . Retrieved Matter . | . . Parts Self-Destructed . | . . Prevented . | . . Kills | -11 -10 ------- Run | Scr Mat Combat Hostiles Destroyed 15 | . 15 Melee 9 | . 9 Classes Destroyed 5 | 2 3 Tunneler 2 | 2 . Hauler 1 | . 1 Recycler 1 | 1 . Swarmer 4 | . 4 Grunt 11 | . 11 Best Kill Streak 5 | 3 5 Combat Bots Only 5 | . 5 Max Kills in Single Turn 1 | 1 1 Gunslinging . | . . Exploded . | . . Melee 1 | . 1 Uniques/NPCs Destroyed . | . . Combat | -11 -10 -------- Run | Scr Mat Damage Taken 745 | . 745 Core 607 | . 607 Absorbed by Shields . | . . Redirected to Core 429 | . 429 Core Remaining (%) 100 | 100 . Volleys Fired 5 | 5 . Largest 3 | 3 . Hottest 110 | 110 . Shots Fired 15 | 15 . Gun 15 | 15 . Cannon . | . . Launcher . | . . Special . | . . Kinetic 5 | 5 . Thermal 10 | 10 . Explosive . | . . Electromagnetic . | . . Robot Hit Streak 10 | 10 . Robot Miss Streak 1 | 1 . Penetration Max . | . . Secondary Targets . | . . Shots Hit Robots 52 | 12 40 Core Hits 15 | 5 10 Critical Hits . | . . Critical Kills . | . . Critical Parts Destroyed . | . . Melee Attacks 51 | . 51 Impact 51 | . 51 Slashing . | . . Piercing . | . . Sneak Attacks 2 | . 2 Combat Hostiles . | . . Follow-up Attacks 10 | . 10 Damage Inflicted 1307 | 129 1178 Guns 129 | 129 . Cannons . | . . Explosions . | . . Melee 1178 | . 1178 Ramming . | . . Kinetic 35 | 35 . Thermal 94 | 94 . Explosive . | . . Electromagnetic . | . . Impact 1178 | . 1178 Slashing . | . . Piercing . | . . Highest Corruption . | . . Average Corruption . | . . Corruption Purged . | . . Overload Shots . | . . Overflow Damage 89 | . 89 Projectiles . | . . Explosions . | . . Melee 89 | . 89 Knockbacks 6 | . 6 Impact 6 | . 6 Kinetic . | . . Secondary . | . . Self-Inflicted Damage . | . . Shots . | . . Rammed . | . . Targets Rammed . | . . Kicked . | . . Crushed . | . . Highest Temperature 96 | 96 . Average Temperature 47 | 47 . Received Heat Transfer 288 | . 288 Siege Activations . | . . Robots Corrupted . | . . Combat Hostiles . | . . Parts Fried 10 | . 10 Impact Corruptions 9 | . 9 Robots Melted . | . . Combat Hostiles . | . . Parts Melted 1 | 1 . Heat Transferred 248 | 248 . Parts Sabotaged . | . . Parts Stolen . | . . Parts Stripped . | . . Power Chain Reactions . | . . Missiles Intercepted . | . . Alert | -11 -10 ------- Run | Scr Mat Peak Influence 298 | 15 298 Average Influence 123 | 5 143 Maximum Alert Level 1 | . 1 Low Security (%) 73 | 100 68 Level 1 26 | . 31 Level 2 . | . . Level 3 . | . . Level 4 . | . . Level 5 . | . . High Security . | . . Max Security . | . . Squads Dispatched 4 | . 4 Investigation 3 | . 3 Extermination . | . . Reinforcement 1 | . 1 Assault . | . . Garrison . | . . Intercept . | . . Construction Impeded . | . . Haulers Reinforced . | . . Stealth | -11 -10 --------- Run | Scr Mat Distress Signals 2 | . 2 Communications Jammed . | . . Distress Signals . | . . Times Spotted 25 | . 25 Peak Tracking Total 6 | . 6 Tactical Retreats . | . . Traps | -11 -10 ------- Run | Scr Mat Traps Triggered . | . . Indirectly . | . . Trap Hack Attempts . | . . Triggered . | . . Disarmed . | . . Reprogrammed . | . . Reused . | . . Traps Extracted . | . . Installed . | . . Triggered . | . . Machines | -11 -10 ---------- Run | Scr Mat Machines Disabled 1 | . 1 Max in Single Turn 1 | . 1 Machines Sabotaged . | . . Garrisons Compromised . | . . Overloaded Fab Kills . | . . Fab Network Shutdowns . | . . Hacking | -11 -10 --------- Run | Scr Mat Machines Accessed 4 | . 4 Terminals 2 | . 2 Fabricators . | . . Repair Stations . | . . Recycling Units 2 | . 2 Scanalyzers . | . . Garrison Access . | . . Total Hacks 16 | . 16 Successful 10 | . 10 Failed 5 | . 5 Catastrophic . | . . Database Lockouts 1 | . 1 Manual 13 | . 13 Terminals 12 | . 12 Fabricators . | . . Repair Stations . | . . Recycling Units 4 | . 4 Scanalyzers . | . . Garrison Access . | . . Terminal Hacks 3 | . 3 Robot Analysis 3 | . 3 Fabricator Hacks . | . . Repair Station Hacks . | . . Recycling Unit Hacks 2 | . 2 Report Inventory 2 | . 2 Scanalyzer . | . . Garrison Access Hacks . | . . Unauthorized Hacks 5 | . 5 Terminals 3 | . 3 Botnet 2 | . 2 Operators 1 | . 1 Fabricators . | . . Repair Stations . | . . Recycling Units 2 | . 2 Tunnel 2 | . 2 Scanalyzers . | . . Garrison Access . | . . Data Cores Recovered . | . . Used . | . . Hacking Detections 3 | . 3 Full Trace Events 1 | . 1 Feedback Events . | . . Feedback Blocked . | . . Robot Schematics Acquired . | . . Robots Built . | . . Matter . | . . Time . | . . Total Robot Build Rating . | . . Part Schematics Acquired . | . . Parts Built . | . . Matter . | . . Time . | . . Total Part Build Rating . | . . Parts Repaired . | . . Time . | . . Parts Recycled . | . . Recycled Matter . | . . Retrieved Matter . | . . Retrieved Components . | . . Parts Scanalyzed . | . . Part Schematics Acquired . | . . Parts Damaged . | . . Bothacking | -11 -10 ------------ Run | Scr Mat Used RIF Installer . | . . Robots Hacked . | . . Non-combat . | . . Combat . | . . Robot Hacks Applied . | . . Relay Couplers Released . | . . Robots Rewired . | . . Allies Hacked . | . . Hacks Repelled . | . . Allies | -11 -10 -------- Run | Scr Mat Total Allies . | . . Largest Group . | . . Highest-Rated Group . | . . Highest-Rated Ally . | . . Total Orders . | . . Ally Attacks . | . . Total Damage . | . . Kills . | . . Allies Corrupted . | . . Allies Melted . | . . Intel | -11 -10 ------- Run | Scr Mat Robot Analysis Total 3 | . 3 Derelict Logs Recovered . | . . Drone Launches . | . . Drone Recoveries . | . . Exploration | -11 -10 ------------- Run | Scr Mat Turns Passed 867 | 126 741 Spaces Moved 428 | 61 367 Core 3 | 3 . Treads 425 | 58 367 Legs . | . . Wheels . | . . Hover . | . . Flight . | . . Fastest Speed 50 | 50 160 Average Speed 159 | 154 160 Slowest Speed 160 | 160 160 Overloaded Moves . | . . Propulsion Burnouts . | . . Robots Hopped . | . . Cave-ins Triggered . | . . Exploration Rate (%) 29 | 4 55 Regions Visited 1 Branch Regions . Pre-discovered Areas 2 | . 2 Known Exits Taken . | . . Unknown Exits Taken 1 | 1 . Scrap Searched . | . . Spaces Dug . | . . Terrain Destroyed . | . . Melee . | . . Projectile . | . . AOE . | . . Actions | -11 -10 --------- Run | Scr Mat Total 522 | 80 442 Wait 38 | 8 30 Move 427 | 60 367 Hop . | . . Pick Up 1 | 1 . Fast Attach 12 | 6 6 Attach . | . . Detach . | . . Swap 1 | . 1 Drop 4 | . 4 Fire 5 | 5 . Melee 34 | . 34 Ram . | . . Kick . | . . Crush . | . . Escape Stasis . | . . Rewire . | . . Trap . | . . Miscellaneous . | . . Route ------- -11/Scrapyard -10/Materials (discovered 3 exits: [*Mat x3]) History --------- Turn | Location | Event 1 | -11/Scrapyard | Upgraded with Utility slot (x2) 1 | -11/Scrapyard | Upgraded with Weapon slot (x2) 16 | -11/Scrapyard | Discovered new exit (range 15) 127 | -11/Scrapyard | Entered Materials 247 | -10/Materials | Discovered new exit (range 10) 279 | -10/Materials | Central database locked down 393 | -10/Materials | Core integrity fell below 50% 411 | -10/Materials | Discovered new exit (range 15) 462 | -10/Materials | Build established: Assassin 556 | -10/Materials | Reached level 2 583 | -10/Materials | Upgraded with Weapon slot (x1) 835 | -10/Materials | Discovered new exit (range 13) 847 | -10/Materials | Core integrity fell below 20% 868 | -10/Materials | Destroyed by G-34 Mercenary with Small Laser Last Messages --------------- 00829_ O-16 Technician uses terminal to summon reinforcements. 00829_ ALERT: Hostiles spotted, dispatching reinforcements to Terminal M001. 00829_ O-16 Technician locks terminal. 00835_ EXIT=FOUND 00844_ Destroyed Flight Unit. 00844_ S-10 Pest system corrupted by crushing effect. 00844_ U-05 Engineer lays Concrete. 00845_ S-10 Pest system terminally corrupted. 00845_ Lgt. Ion Engine fried. 00846_ U-05 Engineer lays Concrete. 00848_ S-10 Pest knocked back. 00848_ Hvy. Hammer follow-up attack on S-10 Pest. 00849_ S-10 Pest destroyed. 00860_ K-01 Serf collects debris. 00861_ Destroyed Heat Sink. 00861_ G-34 Mercenary system corrupted by crushing effect. 00862_ G-34 Mercenary system terminally corrupted. 00862_ Aluminum Leg fried. 00863_ K-01 Serf collects debris. Map ----- +----------------------------------------------------+ | ???????????????????????????##??#???##?< # # | | ???????????????????????????????#??### # # | | ?????????????????????????????????#### ###+#### | | ????????????????????????????#?#??#### =%# | | ?????????????????????????????###?#??# [ | | ???????????????????????????#?#?###### | | ?????????????????????? ????##?###?############## | | ????????????????????? ? ????#???######## # | | ???????????????##?####+###? ? ?? ## """"" # | | ???????????????? #??"" """ ## """""%+ | | ??????????????? + "?"??"" ## """"" # | | ???????????????? # "?" """ ?## # | | ????????????????""" "" # ? ## # | | ????????????## ?""" T" ##################+#### | | ????????????## """ o"" ### | | ???????????#?#??? ### | | ?????????? ??? ? ### | | ??????????? ??#######?# ### | | ????????? ? ?#??#?##### ### | | ????????? ? ### + ### | | ?????????? ? ? ???? ## ### | | ????????? ?? #?# ?# ############### ### | | ????????? ??##?? ? ## ############### ### | | ???????"? ? #?# ? ?# #####!= = %#[ ### | | ????????? ? #?# ??##% #####|= %+= ### | | ????????##?#+######/###@=gk #### =#* ### | | ????????# %s #### # ### | | ????????# < w= ! ############## *%### | | ????????# u # | | ????????########## ### ############## # " | | ????????###?#??### ###################### # " | | ?????????#####?#?# ######?##?############ + " | | ?????????###?###?#? #?####?############### # | | ??????????##?#?### ?##??################## # | | ??????????#??##?#?? ?##################### ### | | ????????????#?###? ##?################### ### | | ???????????????#?? ?####??##?####?######## ### | | ???????????????? ????###?#########?####### ### | | ???????????? ??? ?? ##?##???########?##### ### | | ???????????????? ????#?####?######?####### ### | | ??????????????????? # ??? ??#####?###### ### | | ??????????????????? ??? ???????####??##### ### | | ?????????????????????? ??????###??######## ### | | ?????????????????????????????###??# [ # #?# | | ?????????????????????????????? # # ### | | ??????????????????????????????###?# """ + ### | | ?????????????????????????????#?#### """ # ### | | ??????????????????????????"???#?#?# """ # | | ?????????????o??????????????????#?# # | | ????????????????????????????+#?#??############## | +----------------------------------------------------+ Best States ------------- Heat Dissipation 25 Energy Generation 10 Energy Capacity 125 Matter Stores 300 Matter Capacity 300 Sight Range 19 Terrain Scan Range 16 Terrain Scan Density 210 Evasion (%) 40 Recoil Reduction 1 Item Schematics ----------------- None Robot Schematics ------------------ None Fabricated ------------ Nothing Alien Tech Used ----------------- None Achievements -------------- None Challenges ------------ None RPGLIKE | -11 -10 --------- Run | Scr Mat Levels Raised 1 | . 1 XP Earned 5270 | 3000 2270 XP Spent 4490 | 2990 1500 Upgrades 11 | 7 4 Utility Slot 2 | 2 . Weapon Slot 3 | 2 1 Mass Support 1 | . 1 Inventory Capacity 1 | 1 . Sight Range 1 | . 1 Terrain Scan Density 2 | 2 . Melee Accuracy 1 | . 1 Protomatter Created . | . . Protomatter Decayed . | . . Game ------ Seed GravmagImpulseKit Manual? 0 Play Time 00:11:46 Cumulative 172.8 hours Start 2020.09.02 @ 01:37:17 End 2020.09.02 @ 01:48:18 Sessions 1 Manual Loads 0 Difficulty Rogue Special Mode Winter2019/RPGLIKE Game No. 72 Rogue 72 Adventurer 0 Explorer 0 Win Type - Total 2 Types 1/0/0/1/0/0/0 Lore% 79 Gallery% 74 Achievement% 66 Wizard Run 0 Options --------- ASCII 0 Keyboard 0 Movement Mouse Keybinds 0 Fullscreen 1 Font 18/SmallcapsGlow Map View 76x50 Tactical HUD 1 Map Filters NONE Filters NONE Steam X RUN: a754befc-7241-4795-bfbf-a7bbcd6dc034